[Event "Late-Titled-Tuesday-Blitz-August-29-2023"]
[Site "Chess.com"]
[Date "2023.08.29"]
[Round "3"]
[White "leschebaza"]
[Black "Akhayan"]
[Result "0-1"]
[WhiteElo "2420"]
[BlackElo "2290"]
[TimeControl "180+1"]
[EndTime "14:26:35 PDT"]
[Termination "Akhayan won by resignation"]

1. d4 {[%clk 0:03:00.9]} 1... Nf6 {[%clk 0:02:59.6]} 2. Nf3 {[%clk 0:03:01.2]}
2... g6 {[%clk 0:03:00]} 3. c4 {[%clk 0:03:00.4]} 3... Bg7 {[%clk 0:03:00.4]} 4.
Nc3 {[%clk 0:03:00.7]} 4... d5 {[%clk 0:03:00.8]} 5. Bf4 {[%clk 0:02:53.7]} 5...
O-O {[%clk 0:03:00.3]} 6. e3 {[%clk 0:02:53.8]} 6... c5 {[%clk 0:02:59.6]} 7.
dxc5 {[%clk 0:02:49]} 7... Qa5 {[%clk 0:02:59.7]} 8. Nd2 {[%clk 0:02:44.5]} 8...
dxc4 {[%clk 0:02:49.4]} 9. Bxc4 {[%clk 0:02:42.4]} 9... Qxc5 {[%clk 0:02:48.6]}
10. O-O {[%clk 0:02:41.1]} 10... Nc6 {[%clk 0:02:47.2]} 11. Rc1 {[%clk
0:02:36.3]} 11... Qa5 {[%clk 0:02:45.9]} 12. Nb3 {[%clk 0:02:31.1]} 12... Qb6
{[%clk 0:02:41.4]} 13. a3 {[%clk 0:02:15.8]} 13... Bg4 {[%clk 0:02:39.4]} 14.
Qc2 {[%clk 0:02:11.4]} 14... Rac8 {[%clk 0:02:35.3]} 15. h3 {[%clk 0:02:07.3]}
15... Bf5 {[%clk 0:02:34.7]} 16. e4 {[%clk 0:02:07.1]} 16... Be6 {[%clk
0:02:24.2]} 17. Bxe6 {[%clk 0:01:59.5]} 17... fxe6 {[%clk 0:02:24.8]} 18. Bh2
{[%clk 0:01:55.4]} 18... Nh5 {[%clk 0:02:07]} 19. Na4 {[%clk 0:01:51.6]} 19...
Qd8 {[%clk 0:01:58.6]} 20. Nac5 {[%clk 0:01:51.3]} 20... Nd4 {[%clk 0:01:41.9]}
21. Qc4 {[%clk 0:01:50]} 21... Kh8 {[%clk 0:01:38.2]} 22. Rfd1 {[%clk
0:01:17.2]} 22... e5 {[%clk 0:01:32.9]} 23. Nxd4 {[%clk 0:01:11.2]} 23... exd4
{[%clk 0:01:32.6]} 24. Qd5 {[%clk 0:01:09.3]} 24... Qxd5 {[%clk 0:01:29.2]} 25.
exd5 {[%clk 0:01:10.2]} 25... Bh6 {[%clk 0:01:22.1]} 26. Be5+ {[%clk 0:00:54]}
26... Kg8 {[%clk 0:01:21.5]} 27. f4 {[%clk 0:00:48]} 27... Nxf4 {[%clk
0:01:18.2]} 28. Bxf4 {[%clk 0:00:45.6]} 28... Bxf4 {[%clk 0:01:18.7]} 29. Rc4
{[%clk 0:00:44.4]} 29... b5 {[%clk 0:01:07.8]} 30. Rc2 {[%clk 0:00:42.6]} 30...
Be3+ {[%clk 0:01:03.1]} 31. Kh1 {[%clk 0:00:40.7]} 31... d3 {[%clk 0:01:00.5]}
32. Rxd3 {[%clk 0:00:37.9]} 32... Bxc5 {[%clk 0:01:00.6]} 33. Rdc3 {[%clk
0:00:38.1]} 33... Rf1+ {[%clk 0:00:59.1]} 34. Kh2 {[%clk 0:00:38.4]} 34... Bd6+
{[%clk 0:00:58.4]} 35. g3 {[%clk 0:00:39.3]} 35... Rxc3 {[%clk 0:00:58.4]} 36.
Rxc3 {[%clk 0:00:40.2]} 36... Rf2+ {[%clk 0:00:57.5]} 37. Kg1 {[%clk 0:00:40.8]}
37... Rxb2 {[%clk 0:00:57.1]} 38. Rb3 {[%clk 0:00:41.5]} 38... Rxb3 {[%clk
0:00:56.7]} 0-1

[Event "Late-Titled-Tuesday-Blitz-August-29-2023"]
[Site "Chess.com"]
[Date "2023.08.29"]
[Round "3"]
[White "Mbneu"]
[Black "reevecanada"]
[Result "0-1"]
[WhiteElo "2258"]
[BlackElo "2533"]
[TimeControl "180+1"]
[EndTime "14:26:40 PDT"]
[Termination "reevecanada won on time"]

1. d4 {[%clk 0:02:49.8]} 1... d5 {[%clk 0:02:57.3]} 2. c4 {[%clk 0:02:49.5]}
2... c6 {[%clk 0:02:56.8]} 3. Nf3 {[%clk 0:02:48.2]} 3... Nf6 {[%clk 0:02:54.5]}
4. Nc3 {[%clk 0:02:47.7]} 4... dxc4 {[%clk 0:02:54.2]} 5. e4 {[%clk 0:02:47.9]}
5... b5 {[%clk 0:02:53.9]} 6. Be2 {[%clk 0:02:48.1]} 6... e6 {[%clk 0:02:52.1]}
7. O-O {[%clk 0:02:48]} 7... Bb4 {[%clk 0:02:51.8]} 8. e5 {[%clk 0:02:45.8]}
8... Nd5 {[%clk 0:02:51.4]} 9. Ne4 {[%clk 0:02:46]} 9... O-O {[%clk 0:02:50.5]}
10. Bg5 {[%clk 0:02:44.8]} 10... Be7 {[%clk 0:02:48.3]} 11. Rb1 {[%clk
0:02:44.3]} 11... Bxg5 {[%clk 0:02:44.8]} 12. Nfxg5 {[%clk 0:02:41.2]} 12... h6
{[%clk 0:02:44.3]} 13. Nf3 {[%clk 0:02:35.4]} 13... Nd7 {[%clk 0:02:41.5]} 14.
Nd6 {[%clk 0:02:21.7]} 14... N7b6 {[%clk 0:02:38.1]} 15. Nd2 {[%clk 0:02:20.2]}
15... Ba6 {[%clk 0:02:27.7]} 16. N2e4 {[%clk 0:02:19]} 16... Na4 {[%clk
0:02:24.8]} 17. Bh5 {[%clk 0:02:01.9]} 17... f5 {[%clk 0:02:19.8]} 18. exf6
{[%clk 0:01:52.3]} 18... Nxf6 {[%clk 0:02:18.1]} 19. Bg4 {[%clk 0:01:41.5]}
19... Nxe4 {[%clk 0:02:00.1]} 20. Bxe6+ {[%clk 0:01:35.8]} 20... Kh8 {[%clk
0:01:58.5]} 21. Nxe4 {[%clk 0:01:34.9]} 21... Qe7 {[%clk 0:01:54.6]} 22. d5
{[%clk 0:01:25.4]} 22... cxd5 {[%clk 0:01:52.9]} 23. Bxd5 {[%clk 0:01:24.4]}
23... Rad8 {[%clk 0:01:51.6]} 24. Qh5 {[%clk 0:01:10.6]} 24... Nb6 {[%clk
0:01:33.2]} 25. Nc3 {[%clk 0:00:36.2]} 25... b4 {[%clk 0:01:12.6]} 26. Rbe1
{[%clk 0:00:31.5]} 26... Qc5 {[%clk 0:01:06.8]} 27. Re6 {[%clk 0:00:16.7]} 27...
Rd6 {[%clk 0:01:05.7]} 0-1

[Event "Late-Titled-Tuesday-Blitz-August-29-2023"]
[Site "Chess.com"]
[Date "2023.08.29"]
[Round "3"]
[White "Dontmesswithme_2"]
[Black "Ajedrecista3000"]
[Result "0-1"]
[WhiteElo "2483"]
[BlackElo "2697"]
[TimeControl "180+1"]
[EndTime "14:26:45 PDT"]
[Termination "Ajedrecista3000 won by resignation"]

1. d4 {[%clk 0:03:00.9]} 1... Nf6 {[%clk 0:02:59.5]} 2. c4 {[%clk 0:02:59.5]}
2... g6 {[%clk 0:03:00.1]} 3. Nc3 {[%clk 0:02:59]} 3... d5 {[%clk 0:03:00.2]} 4.
cxd5 {[%clk 0:02:58.7]} 4... Nxd5 {[%clk 0:03:01.1]} 5. e4 {[%clk 0:02:59.2]}
5... Nxc3 {[%clk 0:03:01.3]} 6. bxc3 {[%clk 0:03:00.1]} 6... Bg7 {[%clk
0:03:01.4]} 7. Nf3 {[%clk 0:03:00.8]} 7... c5 {[%clk 0:03:01.7]} 8. Rb1 {[%clk
0:03:00.6]} 8... O-O {[%clk 0:02:51.6]} 9. Be2 {[%clk 0:02:59.8]} 9... Bg4
{[%clk 0:02:40.5]} 10. Be3 {[%clk 0:02:51]} 10... Nc6 {[%clk 0:02:35.4]} 11. d5
{[%clk 0:02:21.3]} 11... Bxc3+ {[%clk 0:02:34.4]} 12. Bd2 {[%clk 0:02:21]} 12...
Bxd2+ {[%clk 0:02:31.7]} 13. Qxd2 {[%clk 0:02:21.9]} 13... Bxf3 {[%clk
0:01:43.2]} 14. gxf3 {[%clk 0:02:13.3]} 14... Nd4 {[%clk 0:01:31.9]} 15. Rxb7
{[%clk 0:02:10.1]} 15... Rb8 {[%clk 0:01:32.1]} 16. Rxb8 {[%clk 0:02:04.9]}
16... Qxb8 {[%clk 0:01:33]} 17. O-O {[%clk 0:02:03.6]} 17... Qf4 {[%clk
0:01:32.8]} 18. Qd3 {[%clk 0:01:51.6]} 18... Rb8 {[%clk 0:01:28.6]} 19. Bd1
{[%clk 0:01:38.8]} 19... h5 {[%clk 0:01:07.7]} 20. Qe3 {[%clk 0:01:31.4]} 20...
g5 {[%clk 0:01:00.4]} 21. Kg2 {[%clk 0:01:01]} 21... Rb2 {[%clk 0:00:57.3]} 22.
Qa3 {[%clk 0:00:50.7]} 22... Rd2 {[%clk 0:00:53.1]} 23. Re1 {[%clk 0:00:07.6]}
23... g4 {[%clk 0:00:52.3]} 24. fxg4 {[%clk 0:00:07]} 24... Qxf2+ {[%clk
0:00:52.1]} 0-1

[Event "Late-Titled-Tuesday-Blitz-August-29-2023"]
[Site "Chess.com"]
[Date "2023.08.29"]
[Round "3"]
[White "geordie_derraugh"]
[Black "Doudou2015"]
[Result "1-0"]
[WhiteElo "2412"]
[BlackElo "2177"]
[TimeControl "180+1"]
[EndTime "14:26:52 PDT"]
[Termination "geordie_derraugh won on time"]

1. e4 {[%clk 0:03:00.9]} 1... e5 {[%clk 0:02:58.4]} 2. Nf3 {[%clk 0:03:00]} 2...
Nc6 {[%clk 0:02:58.2]} 3. d4 {[%clk 0:03:00]} 3... exd4 {[%clk 0:02:58]} 4. Bc4
{[%clk 0:03:00.3]} 4... Nf6 {[%clk 0:02:57.2]} 5. e5 {[%clk 0:03:00.1]} 5... d5
{[%clk 0:02:08.6]} 6. Bb5 {[%clk 0:02:59.1]} 6... Ne4 {[%clk 0:02:07.4]} 7. Nxd4
{[%clk 0:02:59]} 7... Bc5 {[%clk 0:02:07]} 8. Bxc6+ {[%clk 0:02:57.8]} 8... bxc6
{[%clk 0:02:03.2]} 9. O-O {[%clk 0:02:57.4]} 9... Ba6 {[%clk 0:01:35.3]} 10. Re1
{[%clk 0:02:50.9]} 10... Qh4 {[%clk 0:01:31]} 11. Be3 {[%clk 0:02:46.2]} 11...
Bxd4 {[%clk 0:01:21.9]} 12. Qxd4 {[%clk 0:02:40.6]} 12... O-O {[%clk 0:01:00.3]}
13. Nc3 {[%clk 0:02:28.7]} 13... c5 {[%clk 0:00:46.4]} 14. Qxd5 {[%clk
0:02:10.1]} 14... Nxc3 {[%clk 0:00:44.9]} 15. bxc3 {[%clk 0:02:09.8]} 15... Rfe8
{[%clk 0:00:40.3]} 16. Bxc5 {[%clk 0:02:02.5]} 16... Rad8 {[%clk 0:00:37.2]} 17.
Qc6 {[%clk 0:01:56]} 17... Bc8 {[%clk 0:00:29.4]} 18. Qxc7 {[%clk 0:01:49.3]}
18... Qg4 {[%clk 0:00:12.5]} 19. Bd4 {[%clk 0:01:36.5]} 19... Rd7 {[%clk
0:00:10.5]} 20. h3 {[%clk 0:01:04]} 20... Qf5 {[%clk 0:00:07]} 21. Qc4 {[%clk
0:00:49.7]} 21... Bb7 {[%clk 0:00:06.6]} 22. Re3 {[%clk 0:00:49.6]} 22... h5
{[%clk 0:00:01.8]} 23. Rae1 {[%clk 0:00:46.8]} 23... h4 {[%clk 0:00:01.6]} 24.
e6 {[%clk 0:00:46.6]} 1-0

[Event "Late-Titled-Tuesday-Blitz-August-29-2023"]
[Site "Chess.com"]
[Date "2023.08.29"]
[Round "3"]
[White "BillieKimbah"]
[Black "SchmakAttack"]
[Result "1-0"]
[WhiteElo "3044"]
[BlackElo "2776"]
[TimeControl "180+1"]
[EndTime "14:26:54 PDT"]
[Termination "BillieKimbah won by resignation"]

1. d4 {[%clk 0:03:00.9]} 1... Nf6 {[%clk 0:02:58.9]} 2. Nf3 {[%clk 0:03:01.4]}
2... d5 {[%clk 0:02:59.1]} 3. Bg5 {[%clk 0:03:01.2]} 3... Ne4 {[%clk 0:02:59.1]}
4. Bh4 {[%clk 0:03:01.4]} 4... c5 {[%clk 0:02:59]} 5. e3 {[%clk 0:03:01.8]} 5...
Nc6 {[%clk 0:02:54.1]} 6. Nbd2 {[%clk 0:03:01.7]} 6... cxd4 {[%clk 0:02:47.6]}
7. exd4 {[%clk 0:03:01.4]} 7... Qb6 {[%clk 0:02:40.5]} 8. Bd3 {[%clk 0:02:53.7]}
8... Bf5 {[%clk 0:02:37]} 9. O-O {[%clk 0:02:52.3]} 9... e6 {[%clk 0:02:25.6]}
10. Re1 {[%clk 0:02:39.9]} 10... Nxd2 {[%clk 0:02:15.7]} 11. Qxd2 {[%clk
0:02:40.8]} 11... Bxd3 {[%clk 0:02:06.7]} 12. Qxd3 {[%clk 0:02:41.7]} 12... Rc8
{[%clk 0:01:55.2]} 13. c3 {[%clk 0:02:38.4]} 13... Bd6 {[%clk 0:01:52.2]} 14.
Re2 {[%clk 0:02:33.1]} 14... Ne7 {[%clk 0:01:17.1]} 15. Bg3 {[%clk 0:02:25.7]}
15... Bxg3 {[%clk 0:01:10.9]} 16. hxg3 {[%clk 0:02:26.6]} 16... O-O {[%clk
0:01:08.5]} 17. g4 {[%clk 0:02:25.1]} 17... Qd6 {[%clk 0:01:08]} 18. g3 {[%clk
0:02:24.4]} 18... Rfe8 {[%clk 0:00:59.1]} 19. Kg2 {[%clk 0:02:24.2]} 19... Ng6
{[%clk 0:00:58.8]} 20. Rh1 {[%clk 0:02:21.2]} 20... f6 {[%clk 0:00:57.3]} 21.
Rh5 {[%clk 0:02:17]} 21... e5 {[%clk 0:00:51]} 22. dxe5 {[%clk 0:01:56.8]} 22...
fxe5 {[%clk 0:00:51.3]} 23. Nxe5 {[%clk 0:01:55]} 23... Qe6 {[%clk 0:00:27.3]}
24. Re3 {[%clk 0:01:22]} 24... Nf8 {[%clk 0:00:18.8]} 25. Nf3 {[%clk 0:01:13]}
25... Qxg4 {[%clk 0:00:12]} 26. Qxd5+ {[%clk 0:01:13]} 26... Kh8 {[%clk
0:00:12.7]} 27. Ne5 {[%clk 0:01:09.1]} 27... Qxh5 {[%clk 0:00:02.6]} 28. Nf7+
{[%clk 0:01:08.9]} 28... Qxf7 {[%clk 0:00:03.2]} 29. Qxf7 {[%clk 0:01:09.3]}
29... Rxe3 {[%clk 0:00:03.2]} 30. fxe3 {[%clk 0:01:10.2]} 30... Ng6 {[%clk
0:00:03.6]} 31. Qxb7 {[%clk 0:01:09.6]} 31... Re8 {[%clk 0:00:04.3]} 32. Qxa7
{[%clk 0:01:08.3]} 32... h6 {[%clk 0:00:04.4]} 33. b4 {[%clk 0:01:08.3]} 33...
Rxe3 {[%clk 0:00:03]} 34. Qxe3 {[%clk 0:01:07.5]} 1-0

[Event "Late-Titled-Tuesday-Blitz-August-29-2023"]
[Site "Chess.com"]
[Date "2023.08.29"]
[Round "3"]
[White "bazar-wokzal"]
[Black "aqibjbutt"]
[Result "1-0"]
[WhiteElo "2574"]
[BlackElo "1990"]
[TimeControl "180+1"]
[EndTime "14:26:54 PDT"]
[Termination "bazar-wokzal won by resignation"]

1. e4 {[%clk 0:03:00.9]} 1... c6 {[%clk 0:02:55]} 2. d4 {[%clk 0:02:59.2]} 2...
d5 {[%clk 0:02:55.2]} 3. f3 {[%clk 0:02:59.3]} 3... e6 {[%clk 0:02:41.3]} 4. Nc3
{[%clk 0:02:59]} 4... c5 {[%clk 0:02:41.4]} 5. Bb5+ {[%clk 0:02:53.9]} 5... Nc6
{[%clk 0:02:39.4]} 6. exd5 {[%clk 0:02:52.4]} 6... exd5 {[%clk 0:02:37.5]} 7.
Nge2 {[%clk 0:02:52.7]} 7... a6 {[%clk 0:02:34.3]} 8. Bxc6+ {[%clk 0:02:52.2]}
8... bxc6 {[%clk 0:02:35.2]} 9. O-O {[%clk 0:02:52.2]} 9... Be7 {[%clk
0:02:28.4]} 10. Be3 {[%clk 0:02:43.7]} 10... c4 {[%clk 0:02:23.8]} 11. b3 {[%clk
0:02:39.4]} 11... cxb3 {[%clk 0:02:21.6]} 12. axb3 {[%clk 0:02:39]} 12... Nf6
{[%clk 0:02:19.8]} 13. Nf4 {[%clk 0:02:35.3]} 13... O-O {[%clk 0:02:19.2]} 14.
Nd3 {[%clk 0:02:31]} 14... Bd6 {[%clk 0:02:07.3]} 15. Qd2 {[%clk 0:02:14.1]}
15... Qc7 {[%clk 0:02:05.8]} 16. Bf4 {[%clk 0:02:09.8]} 16... Bxf4 {[%clk
0:01:59.3]} 17. Qxf4 {[%clk 0:02:09.6]} 17... Qxf4 {[%clk 0:01:58]} 18. Nxf4
{[%clk 0:02:09.3]} 18... Bf5 {[%clk 0:01:53.9]} 19. Ra2 {[%clk 0:02:04.9]} 19...
Rfe8 {[%clk 0:01:48.1]} 20. Na4 {[%clk 0:02:04.7]} 20... g5 {[%clk 0:01:45]} 21.
g4 {[%clk 0:01:34.5]} 21... Bxg4 {[%clk 0:01:19]} 22. fxg4 {[%clk 0:01:34.2]}
22... gxf4 {[%clk 0:01:18.1]} 23. Rxf4 {[%clk 0:01:34.5]} 23... Kg7 {[%clk
0:01:09.8]} 24. Nc5 {[%clk 0:01:33.9]} 24... Re2 {[%clk 0:01:05.8]} 25. g5
{[%clk 0:01:31.6]} 25... Ne4 {[%clk 0:01:03.7]} 26. Nxe4 {[%clk 0:01:30.5]}
26... dxe4 {[%clk 0:01:00.3]} 27. Rf2 {[%clk 0:01:29.6]} 27... Re1+ {[%clk
0:00:56.9]} 28. Kg2 {[%clk 0:01:29.5]} 28... Rd8 {[%clk 0:00:57]} 29. c3 {[%clk
0:01:27.4]} 29... Rd5 {[%clk 0:00:54.9]} 30. h4 {[%clk 0:01:26.9]} 30... c5
{[%clk 0:00:49.8]} 31. dxc5 {[%clk 0:01:18.8]} 31... Rxc5 {[%clk 0:00:49.5]} 32.
c4 {[%clk 0:01:18.9]} 32... a5 {[%clk 0:00:45.1]} 33. Rfe2 {[%clk 0:01:13.4]}
33... Rb1 {[%clk 0:00:39.4]} 34. Rab2 {[%clk 0:01:08.6]} 34... Rxb2 {[%clk
0:00:38.4]} 35. Rxb2 {[%clk 0:01:09.5]} 35... a4 {[%clk 0:00:39]} 36. bxa4
{[%clk 0:01:09.2]} 36... Rxc4 {[%clk 0:00:39.4]} 37. Ra2 {[%clk 0:01:09.7]}
37... f6 {[%clk 0:00:35.8]} 38. a5 {[%clk 0:01:06.8]} 38... fxg5 {[%clk
0:00:33]} 39. a6 {[%clk 0:01:06.4]} 39... Rc7 {[%clk 0:00:33.5]} 40. a7 {[%clk
0:01:05.9]} 1-0

[Event "Late-Titled-Tuesday-Blitz-August-29-2023"]
[Site "Chess.com"]
[Date "2023.08.29"]
[Round "3"]
[White "Karacsonyi_Gellert"]
[Black "ybothg"]
[Result "1-0"]
[WhiteElo "2848"]
[BlackElo "2500"]
[TimeControl "180+1"]
[EndTime "14:26:56 PDT"]
[Termination "Karacsonyi_Gellert won by resignation"]

1. e4 {[%clk 0:03:00.9]} 1... c5 {[%clk 0:02:59.4]} 2. Nf3 {[%clk 0:03:00.8]}
2... e6 {[%clk 0:02:59.2]} 3. d4 {[%clk 0:03:00.9]} 3... cxd4 {[%clk 0:03:00.1]}
4. Nxd4 {[%clk 0:03:01.5]} 4... Nf6 {[%clk 0:03:00.1]} 5. Nc3 {[%clk 0:03:01.1]}
5... Nc6 {[%clk 0:03:00.5]} 6. Ndb5 {[%clk 0:03:01]} 6... Bb4 {[%clk 0:03:00.6]}
7. a3 {[%clk 0:03:00.6]} 7... Bxc3+ {[%clk 0:03:01]} 8. Nxc3 {[%clk 0:03:01.5]}
8... d5 {[%clk 0:03:01.7]} 9. exd5 {[%clk 0:03:02.2]} 9... exd5 {[%clk
0:03:02.6]} 10. Bd3 {[%clk 0:03:02.3]} 10... O-O {[%clk 0:03:03.3]} 11. O-O
{[%clk 0:03:02.2]} 11... d4 {[%clk 0:03:04]} 12. Ne2 {[%clk 0:03:02.7]} 12...
Bg4 {[%clk 0:03:04.4]} 13. Bg5 {[%clk 0:03:03.2]} 13... Qd6 {[%clk 0:03:01.7]}
14. Qd2 {[%clk 0:02:57.9]} 14... Rfe8 {[%clk 0:02:59.9]} 15. Ng3 {[%clk
0:02:54.4]} 15... h6 {[%clk 0:02:48.9]} 16. Bxf6 {[%clk 0:02:53.4]} 16... Qxf6
{[%clk 0:02:49.8]} 17. Rae1 {[%clk 0:02:51.6]} 17... Ne5 {[%clk 0:02:41]} 18.
Ne4 {[%clk 0:02:46.4]} 18... Qb6 {[%clk 0:02:30.9]} 19. b3 {[%clk 0:02:37.6]}
19... Rac8 {[%clk 0:02:12.5]} 20. Qf4 {[%clk 0:02:28]} 20... Nxd3 {[%clk
0:01:41.7]} 21. cxd3 {[%clk 0:02:28.9]} 21... Be6 {[%clk 0:01:41.3]} 22. Nd6
{[%clk 0:02:14]} 22... Qxb3 {[%clk 0:01:40.6]} 23. Nxe8 {[%clk 0:02:07.7]} 23...
Rxe8 {[%clk 0:01:40.7]} 24. Qxd4 {[%clk 0:02:08.3]} 24... Qxa3 {[%clk
0:01:41.2]} 25. Ra1 {[%clk 0:02:08.5]} 25... Qe7 {[%clk 0:01:29.4]} 26. Rxa7
{[%clk 0:02:07.7]} 26... Rd8 {[%clk 0:01:29.8]} 27. Qe4 {[%clk 0:02:06.1]} 27...
Qd6 {[%clk 0:01:25.7]} 28. Qxb7 {[%clk 0:01:48.1]} 28... Bd5 {[%clk 0:01:24.9]}
29. Qe7 {[%clk 0:01:42.4]} 29... Qb6 {[%clk 0:01:14.5]} 30. Rd7 {[%clk
0:01:39.2]} 30... Rxd7 {[%clk 0:01:07.3]} 31. Qxd7 {[%clk 0:01:40.1]} 31... Qc5
{[%clk 0:01:04.1]} 32. h3 {[%clk 0:01:36.1]} 32... Kh7 {[%clk 0:00:46.8]} 33.
Qf5+ {[%clk 0:01:32.2]} 33... Kg8 {[%clk 0:00:38.7]} 34. Re1 {[%clk 0:01:28.6]}
34... Qc6 {[%clk 0:00:36.3]} 35. Qe5 {[%clk 0:01:21.4]} 35... Be6 {[%clk
0:00:35.8]} 36. Qe4 {[%clk 0:01:17.5]} 36... Qd6 {[%clk 0:00:33.7]} 37. Ra1
{[%clk 0:01:17]} 37... g6 {[%clk 0:00:30.8]} 38. d4 {[%clk 0:01:12.8]} 38... Bd5
{[%clk 0:00:28.3]} 39. Qe5 {[%clk 0:01:12.2]} 39... Qc6 {[%clk 0:00:28]} 40. Rb1
{[%clk 0:01:09.8]} 40... Be6 {[%clk 0:00:21.2]} 41. Rb8+ {[%clk 0:01:09.5]}
41... Bc8 {[%clk 0:00:22.1]} 42. Qc5 {[%clk 0:01:06.6]} 42... Qxc5 {[%clk
0:00:23]} 43. dxc5 {[%clk 0:01:06.9]} 1-0

[Event "Late-Titled-Tuesday-Blitz-August-29-2023"]
[Site "Chess.com"]
[Date "2023.08.29"]
[Round "3"]
[White "NotFischer"]
[Black "effefe"]
[Result "0-1"]
[WhiteElo "2248"]
[BlackElo "2424"]
[TimeControl "180+1"]
[EndTime "14:27:00 PDT"]
[Termination "effefe won by resignation"]

1. e4 {[%clk 0:03:00.9]} 1... c5 {[%clk 0:02:56]} 2. Nf3 {[%clk 0:03:00.7]} 2...
d6 {[%clk 0:02:54.9]} 3. d4 {[%clk 0:03:00.5]} 3... cxd4 {[%clk 0:02:55.8]} 4.
Nxd4 {[%clk 0:03:00.9]} 4... Nf6 {[%clk 0:02:56.4]} 5. Nc3 {[%clk 0:03:01]} 5...
g6 {[%clk 0:02:56.6]} 6. Be2 {[%clk 0:02:57.4]} 6... Bg7 {[%clk 0:02:56.9]} 7.
Be3 {[%clk 0:02:57.2]} 7... O-O {[%clk 0:02:57.6]} 8. O-O {[%clk 0:02:57.1]}
8... Nc6 {[%clk 0:02:58]} 9. h3 {[%clk 0:02:56.7]} 9... Bd7 {[%clk 0:02:53.8]}
10. Nb3 {[%clk 0:02:55.8]} 10... a5 {[%clk 0:02:51.9]} 11. a4 {[%clk 0:02:51.7]}
11... Rc8 {[%clk 0:02:41.9]} 12. f4 {[%clk 0:02:51.5]} 12... Nb4 {[%clk
0:02:38.8]} 13. Bf3 {[%clk 0:02:43.6]} 13... Bc6 {[%clk 0:02:37.4]} 14. Nd4
{[%clk 0:02:34.7]} 14... Nd7 {[%clk 0:02:27.6]} 15. Nxc6 {[%clk 0:02:28.8]}
15... Rxc6 {[%clk 0:02:12.6]} 16. e5 {[%clk 0:02:26.4]} 16... dxe5 {[%clk
0:02:10.5]} 17. Bxc6 {[%clk 0:02:25.8]} 17... Nxc6 {[%clk 0:02:11.1]} 18. f5
{[%clk 0:02:22.5]} 18... Nd4 {[%clk 0:02:00.8]} 19. fxg6 {[%clk 0:02:18.9]}
19... hxg6 {[%clk 0:01:59.9]} 20. Nb5 {[%clk 0:02:18.8]} 20... Nf5 {[%clk
0:01:51.5]} 21. Bf2 {[%clk 0:02:13.6]} 21... e4 {[%clk 0:01:40.5]} 22. Qg4
{[%clk 0:02:12.2]} 22... e3 {[%clk 0:01:36.6]} 23. Be1 {[%clk 0:02:04.7]} 23...
Ne5 {[%clk 0:01:25]} 24. Qe4 {[%clk 0:01:52.3]} 24... Qb6 {[%clk 0:01:21.1]} 25.
Kh2 {[%clk 0:01:36.2]} 25... Rc8 {[%clk 0:01:06.7]} 26. Rd1 {[%clk 0:01:09.4]}
26... Rc4 {[%clk 0:00:45.9]} 27. Qd5 {[%clk 0:01:07]} 27... Rxc2 {[%clk
0:00:36.4]} 28. Qd8+ {[%clk 0:01:05.1]} 28... Qxd8 {[%clk 0:00:37]} 29. Rxd8+
{[%clk 0:01:05.5]} 29... Kh7 {[%clk 0:00:37.6]} 30. Bxa5 {[%clk 0:00:59.1]}
30... Nc6 {[%clk 0:00:32.3]} 31. Bb6 {[%clk 0:00:49.5]} 31... Be5+ {[%clk
0:00:30.5]} 32. Kg1 {[%clk 0:00:47]} 32... Nxd8 {[%clk 0:00:30.2]} 33. Bxd8
{[%clk 0:00:46.4]} 33... e2 {[%clk 0:00:25.4]} 34. Re1 {[%clk 0:00:45.6]} 34...
Bg3 {[%clk 0:00:23.9]} 0-1

[Event "Late-Titled-Tuesday-Blitz-August-29-2023"]
[Site "Chess.com"]
[Date "2023.08.29"]
[Round "3"]
[White "kiwibobo"]
[Black "protectiago"]
[Result "1-0"]
[WhiteElo "2381"]
[BlackElo "2101"]
[TimeControl "180+1"]
[EndTime "14:27:02 PDT"]
[Termination "kiwibobo won by checkmate"]

1. e4 {[%clk 0:03:00]} 1... e5 {[%clk 0:02:54.9]} 2. Nf3 {[%clk 0:03:00.1]} 2...
Nc6 {[%clk 0:02:54]} 3. Bb5 {[%clk 0:03:00.3]} 3... a6 {[%clk 0:02:53.6]} 4. Ba4
{[%clk 0:02:59.7]} 4... Nf6 {[%clk 0:02:47.2]} 5. O-O {[%clk 0:02:58.7]} 5...
Nxe4 {[%clk 0:02:47.6]} 6. d4 {[%clk 0:02:58.1]} 6... b5 {[%clk 0:02:46.8]} 7.
Bb3 {[%clk 0:02:57.7]} 7... d5 {[%clk 0:02:47]} 8. dxe5 {[%clk 0:02:57.7]} 8...
Be6 {[%clk 0:02:46.8]} 9. Be3 {[%clk 0:02:57.1]} 9... Bc5 {[%clk 0:02:44.6]} 10.
Qd3 {[%clk 0:02:49.6]} 10... O-O {[%clk 0:02:23.4]} 11. c3 {[%clk 0:02:35.7]}
11... Ne7 {[%clk 0:02:13.1]} 12. Nbd2 {[%clk 0:02:29.6]} 12... Bxe3 {[%clk
0:01:56.3]} 13. Qxe3 {[%clk 0:02:22.3]} 13... Nf5 {[%clk 0:01:47]} 14. Qe2
{[%clk 0:02:14.5]} 14... Nxd2 {[%clk 0:01:31.3]} 15. Qxd2 {[%clk 0:02:09.6]}
15... c5 {[%clk 0:01:29.8]} 16. Rad1 {[%clk 0:02:02.9]} 16... Ne7 {[%clk
0:00:50.1]} 17. Ng5 {[%clk 0:01:57.3]} 17... h6 {[%clk 0:00:47.5]} 18. Nxe6
{[%clk 0:01:48.4]} 18... fxe6 {[%clk 0:00:47.6]} 19. Bc2 {[%clk 0:01:47]} 19...
Qe8 {[%clk 0:00:46.5]} 20. f4 {[%clk 0:01:41.6]} 20... Qh5 {[%clk 0:00:41.8]}
21. h3 {[%clk 0:01:34.3]} 21... Rad8 {[%clk 0:00:30.9]} 22. Qd3 {[%clk
0:01:32.7]} 22... Nf5 {[%clk 0:00:10.1]} 23. g4 {[%clk 0:01:30.1]} 23... Qg6
{[%clk 0:00:11]} 24. Kh2 {[%clk 0:01:27]} 24... c4 {[%clk 0:00:11.3]} 25. Qe2
{[%clk 0:01:19.8]} 25... Qf7 {[%clk 0:00:04.5]} 26. gxf5 {[%clk 0:01:19.1]}
26... exf5 {[%clk 0:00:04.6]} 27. Rg1 {[%clk 0:01:18.9]} 27... Rfe8 {[%clk
0:00:04.3]} 28. Qf2 {[%clk 0:01:16]} 28... Re6 {[%clk 0:00:04.4]} 29. Qc5 {[%clk
0:01:12.7]} 29... Qd7 {[%clk 0:00:02.9]} 30. Bxf5 {[%clk 0:01:11]} 30... Qc6
{[%clk 0:00:01.6]} 31. Bxe6+ {[%clk 0:01:09]} 31... Qxe6 {[%clk 0:00:01.9]} 32.
Qc7 {[%clk 0:01:07.8]} 32... Rc8 {[%clk 0:00:01.2]} 33. Qxg7# {[%clk 0:01:06.7]}
1-0